fUSD/lending_fUSD_20240530
["ID","MTS","AMOUNT","RATE_DAILY","PERIOD"]
[328207197,1717059050259,-636.59994953,0.00029267,7]
[328207198,1717059050268,-500.0,0.00029267,7]
[328207199,1717059050277,-500.0,0.00029267,7]
[328207200,1717059050289,-543.19,0.00029267,7]
[328207201,1717059050299,-1057.43,0.00029267,7]
[328207202,1717059050308,-500.0,0.00029267,7]
[328207203,1717059050317,-500.0,0.00029267,7]
[328207204,1717059050326,-528.63,0.00029267,7]
[328207205,1717059050335,-500.0,0.00029267,7]
[328207206,1717059050345,-500.0,0.00029267,7]
[328207207,1717059050354,-500.0,0.00029267,7]
[328207208,1717059050364,-500.0,0.00029267,7]
[328207209,1717059050374,-500.0,0.00029267,7]
[328207210,1717059050383,-258.28263392,0.00029267,7]
[328207211,1717059050393,-543.35311103,0.00029267,7]
[328207212,1717059050405,-532.18604204,0.00029267,7]
[328207213,1717059050415,-500.0,0.00029267,7]
[328207214,1717059050424,-500.0,0.00029267,7]
[328207215,1717059050434,-500.0,0.00029267,7]
[328207216,1717059050444,-500.0,0.00029267,7]
[328207217,1717059050454,-1324.47,0.00029267,7]
[328207218,1717059050463,-500.0,0.00029267,7]
[328207219,1717059050473,-500.0,0.00029267,7]
[328207220,1717059050482,-500.0,0.00029267,7]
[328207221,1717059050491,-500.0,0.00029267,7]
[328207222,1717059050501,-500.0,0.00029267,7]
[328207223,1717059050510,-500.0,0.00029267,7]
[328207224,1717059050519,-1266.45,0.00029267,7]
[328207225,1717059050528,-487.12556574,0.00029267,7]
[328207226,1717059050538,-500.0,0.00029267,7]
[328207227,1717059050547,-500.0,0.00029267,7]
[328207228,1717059050556,-500.0,0.00029267,7]
[328207229,1717059050564,-500.0,0.00029267,7]
[328207230,1717059050574,-500.0,0.00029267,7]
[328207231,1717059050583,-500.0,0.00029267,7]
[328207232,1717059050592,-500.0,0.00029267,7]
[328207233,1717059050600,-500.0,0.00029267,7]
[328207234,1717059050609,-500.0,0.00029267,7]
[328207235,1717059050618,-594.79,0.00029267,7]
[328207236,1717059050628,-500.0,0.00029267,7]
[328207237,1717059050637,-500.0,0.00029267,7]
[328207238,1717059050647,-500.0,0.00029267,7]
[328207239,1717059050658,-500.0,0.00029267,7]
[328207240,1717059050668,-500.0,0.00029267,7]
[328207241,1717059050678,-500.0,0.00029267,7]
[328207242,1717059050687,-500.0,0.00029267,7]
[328207243,1717059050696,-1909.26,0.00029267,7]
[328207244,1717059050706,-500.0,0.00029267,7]
[328207245,1717059050715,-500.0,0.00029267,7]
[328207246,1717059050724,-4662.12,0.00029267,7]
[328207247,1717059050734,-500.0,0.00029267,7]
[328207248,1717059050744,-500.0,0.00029267,7]
[328207249,1717059050753,-421.19231071,0.00029267,7]
[328207250,1717059050763,-500.0,0.00029267,7]
[328207251,1717059050772,-1396.56,0.00029267,7]
[328207252,1717059050781,-500.0,0.00029267,7]
[328207253,1717059050791,-500.0,0.00029267,7]
[328207254,1717059050800,-500.0,0.00029267,7]
[328207255,1717059050809,-500.0,0.00029267,7]
[328207256,1717059050818,-1061.8,0.00029267,7]
[328207257,1717059050827,-500.0,0.00029267,7]
[328207258,1717059050836,-500.0,0.00029267,7]
[328207259,1717059050846,-500.0,0.00029267,7]
[328207260,1717059050855,-500.0,0.00029267,7]
[328207261,1717059050864,-1079.3,0.00029267,7]
[328207262,1717059050873,-500.0,0.00029267,7]
[328207263,1717059050883,-527.09576268,0.00029267,7]
[328207264,1717059050892,-500.0,0.00029267,7]
[328207265,1717059050903,-522.6714074,0.00029267,7]
[328207266,1717059050913,-500.0,0.00029267,7]
[328207267,1717059050922,-389.05105413,0.00029267,7]
[328207268,1717059050931,-500.0,0.00029267,7]
[328207269,1717059050940,-500.0,0.00029267,7]
[328207270,1717059050949,-500.0,0.00029267,7]
[328207271,1717059050959,-500.0,0.00029267,7]
[328207272,1717059050968,-727.26,0.00029267,7]
[328207273,1717059050977,-500.0,0.00029267,7]
[328207274,1717059050987,-500.0,0.00029267,7]
[328207275,1717059050996,-1864.91,0.00029267,7]
[328207276,1717059051005,-500.0,0.00029267,7]
[328207277,1717059051014,-500.0,0.00029267,7]
[328207278,1717059051023,-500.0,0.00029267,7]
[328207279,1717059051033,-700.54,0.00029267,7]
[328207280,1717059051044,-500.0,0.00029267,7]
[328207281,1717059051054,-500.0,0.00029267,7]
[328207282,1717059051063,-500.0,0.00029267,7]
[328207283,1717059051072,-1550.31,0.00029267,7]
[328207284,1717059051082,-1163.34,0.00029267,7]
[328207285,1717059051091,-524.12889727,0.00029267,7]
[328207286,1717059051100,-500.0,0.00029267,7]
[328207287,1717059051109,-500.0,0.00029267,7]
[328207288,1717059051120,-500.0,0.00029267,7]
[328207289,1717059051132,-500.0,0.00029267,7]
[328207290,1717059051141,-500.0,0.00029267,7]
[328207291,1717059051152,-1692.3,0.00029267,7]
[328207292,1717059051161,-500.0,0.00029267,7]
[328207293,1717059051171,-500.0,0.00029267,7]
[328207294,1717059051179,-682.91,0.00029267,7]
[328207295,1717059051189,-500.0,0.00029267,7]
[328207296,1717059051199,-500.0,0.00029267,7]
[328207297,1717059051209,-767.76,0.00029267,7]
[328207298,1717059051220,-500.0,0.00029267,7]
[328207299,1717059051229,-500.0,0.00029267,7]
[328207300,1717059051239,-500.0,0.00029267,7]
[328207301,1717059051247,-500.0,0.00029267,7]
[328207302,1717059051257,-500.0,0.00029267,7]
[328207303,1717059051266,-500.0,0.00029267,7]
[328207304,1717059051275,-500.0,0.00029267,7]
[328207305,1717059051285,-500.0,0.00029267,7]
[328207306,1717059051294,-500.0,0.00029267,7]
[328207307,1717059051303,-500.0,0.00029267,7]
[328207308,1717059051313,-500.0,0.00029267,7]
[328207309,1717059051322,-500.0,0.00029267,7]
[328207310,1717059051331,-500.0,0.00029268,2]
[328207311,1717059051340,-500.0,0.00029268,7]
[328207312,1717059051350,-573.94,0.00029268,7]
[328207313,1717059051359,-500.0,0.00029268,7]
[328207314,1717059051368,-500.0,0.00029269,7]
[328207315,1717059051377,-1106.73,0.00029269,7]
[328207316,1717059051387,-541.0281416,0.00029269,7]
[328207317,1717059051396,-500.0,0.00029269,7]
[328207318,1717059051406,-1146.3,0.00029269,7]
[328207319,1717059051416,-500.0,0.00029269,7]
[328207320,1717059051425,-640.19952691,0.00029269,7]
[328207321,1717059051434,-500.0,0.00029269,7]
[328207322,1717059051444,-500.0,0.00029269,7]
[328207323,1717059051453,-500.0,0.00029269,7]
[328207324,1717059051463,-343.65577391,0.00029269,7]
[328207325,1717059051471,-1135.65,0.00029269,7]
[328207326,1717059051480,-500.0,0.00029269,7]
[328207327,1717059051490,-212.48117514,0.00029269,7]
[328207328,1717059051498,-531.20069624,0.00029269,7]
[328207329,1717059051508,-500.0,0.00029269,7]
[328207330,1717059051517,-500.0,0.00029269,7]
[328207331,1717059051526,-378.198464,0.00029269,7]
[328207332,1717059051535,-550.47252671,0.00029269,7]
[328207333,1717059051544,-545.95,0.00029269,7]
[328207334,1717059051554,-564.43060918,0.00029269,7]
[328207335,1717059051563,-620.42857256,0.00029269,7]
[328207336,1717059051572,-563.46779986,0.00029269,7]
[328207337,1717059051582,-386.35747101,0.00029269,7]
[328207338,1717059051591,-500.0,0.00029269,7]
[328207339,1717059051600,-500.0,0.00029269,7]
[328207340,1717059051609,-552.91571283,0.00029269,7]
[328207341,1717059051618,-547.74,0.00029269,7]
[328207342,1717059051627,-500.0,0.00029269,7]
[328207343,1717059051636,-500.0,0.00029269,7]
[328207344,1717059051646,-204.21957481,0.00029269,7]
[328207345,1717059051656,-500.0,0.00029269,7]
[328207346,1717059051665,-225.13860403,0.00029269,7]
[328207347,1717059051675,-500.0,0.00029269,7]
[328207348,1717059051684,-500.0,0.00029269,7]
[328207349,1717059051693,-538.30581758,0.00029269,7]
[328207350,1717059051703,-500.0,0.00029269,7]
[328207351,1717059051712,-500.0,0.00029269,7]
[328207352,1717059051721,-500.0,0.00029269,7]
[328207353,1717059051730,-520.48209151,0.00029269,7]
[328207354,1717059051740,-500.0,0.00029269,7]
[328207355,1717059051749,-500.0,0.00029269,7]
[328207356,1717059051758,-545.20455152,0.00029269,7]
[328207357,1717059051768,-500.0,0.00029269,7]
[328207358,1717059051777,-500.0,0.00029269,7]
[328207359,1717059051786,-500.0,0.00029269,7]
[328207360,1717059051795,-500.0,0.00029269,7]
[328207361,1717059051805,-288.65763584,0.00029269,7]
[328207362,1717059051815,-500.0,0.00029269,7]
[328207363,1717059051825,-500.0,0.00029269,7]
[328207364,1717059051834,-542.58654525,0.00029269,7]
[328207365,1717059051844,-500.0,0.00029269,7]
[328207366,1717059051853,-500.0,0.00029269,7]
[328207367,1717059051862,-694.36,0.00029269,7]
[328207368,1717059051871,-500.0,0.00029269,7]
[328207369,1717059051881,-500.0,0.00029269,7]
[328207370,1717059051890,-500.0,0.00029269,7]
[328207371,1717059051900,-500.0,0.00029269,7]
[328207372,1717059051909,-500.0,0.00029269,7]
[328207373,1717059051918,-500.0,0.00029269,2]
[328207374,1717059051927,-500.0,0.00029269,7]
[328207375,1717059051936,-500.0,0.00029269,7]
[328207376,1717059051945,-530.47437657,0.00029269,7]
[328207377,1717059051954,-500.0,0.00029269,7]
[328207378,1717059051964,-500.0,0.00029269,7]
[328207379,1717059051972,-311.32812595,0.00029269,7]
[328207380,1717059051981,-500.0,0.00029269,7]
[328207381,1717059051990,-822.73,0.00029269,7]
[328207382,1717059051999,-500.0,0.00029269,7]
[328207383,1717059052009,-500.0,0.00029269,7]
[328207384,1717059052018,-500.0,0.00029269,7]
[328207385,1717059052027,-500.0,0.00029269,7]
[328207386,1717059052036,-500.0,0.00029269,7]
[328207387,1717059052047,-500.0,0.00029269,7]
[328207388,1717059052056,-550.65220556,0.00029269,7]
[328207389,1717059052065,-500.0,0.00029269,7]
[328207390,1717059052075,-578.94988669,0.00029269,7]
[328207391,1717059052084,-292.64880044,0.00029269,7]
[328207392,1717059052094,-500.0,0.00029269,7]
[328207393,1717059052103,-500.0,0.00029269,7]
[328207394,1717059052112,-500.0,0.00029269,7]
[328207395,1717059052124,-539.33,0.00029269,7]
[328207396,1717059052133,-500.0,0.00029269,7]
[328207397,1717059052143,-500.0,0.00029269,7]
[328207398,1717059052153,-500.0,0.00029269,7]
[328207399,1717059052163,-500.0,0.00029269,7]
[328207400,1717059052173,-500.0,0.00029269,7]
[328207401,1717059052182,-500.0,0.00029269,7]
[328207402,1717059052192,-500.0,0.00029269,7]
[328207403,1717059052201,-649.85,0.00029269,7]
[328207404,1717059052212,-500.0,0.00029269,7]
[328207405,1717059052221,-500.0,0.00029269,7]
[328207406,1717059052230,-801.05,0.00029269,7]
[328207407,1717059052240,-545.17111888,0.00029269,7]
[328207408,1717059052249,-500.0,0.00029269,7]
[328207409,1717059052258,-540.64,0.00029269,7]
[328207410,1717059052267,-556.46843601,0.00029269,7]
[328207411,1717059052276,-500.0,0.00029269,7]
[328207412,1717059052285,-500.0,0.00029269,7]
[328207413,1717059052294,-500.0,0.00029269,7]
[328207414,1717059052304,-522.49539382,0.00029269,7]
[328207415,1717059052313,-500.0,0.00029269,7]
[328207416,1717059052322,-500.0,0.00029269,7]
[328207417,1717059052331,-580.2,0.00029269,7]
[328207418,1717059052341,-1300.42,0.00029269,7]
[328207419,1717059052350,-500.0,0.00029269,7]
[328207420,1717059052359,-500.0,0.00029269,7]
[328207421,1717059052368,-590.08,0.00029269,7]
[328207422,1717059052378,-500.0,0.00029269,7]
[328207423,1717059052387,-500.0,0.00029269,7]
[328207424,1717059052396,-621.33,0.00029269,7]
[328207425,1717059052407,-500.0,0.00029269,7]
[328207426,1717059052416,-500.0,0.00029269,7]
[328207427,1717059052426,-500.0,0.00029269,7]
[328207428,1717059052435,-500.0,0.00029269,7]
[328207429,1717059052445,-500.0,0.00029269,7]
[328207430,1717059052454,-1159.3,0.00029269,7]
[328207431,1717059052464,-500.0,0.00029269,7]
[328207432,1717059052473,-500.0,0.00029269,7]
[328207433,1717059052482,-500.0,0.00029269,7]
[328207434,1717059052491,-500.0,0.00029269,7]
[328207435,1717059052500,-500.0,0.00029269,7]
[328207436,1717059052510,-500.0,0.00029269,7]
[328207437,1717059052519,-500.0,0.00029269,7]
[328207438,1717059052528,-500.0,0.00029269,7]
[328207439,1717059052537,-500.0,0.00029269,7]
[328207440,1717059052547,-500.0,0.00029269,7]
[328207441,1717059052556,-500.0,0.00029269,7]
[328207442,1717059052565,-500.0,0.00029269,7]
[328207443,1717059052574,-500.0,0.00029269,7]
[328207444,1717059052584,-500.0,0.00029269,7]
[328207445,1717059052594,-500.0,0.00029269,7]
[328207446,1717059052603,-500.0,0.00029269,7]
[328207447,1717059052612,-500.0,0.00029269,7]
[328207448,1717059052776,-500.0,0.00029269,7]
[328207449,1717059052786,-500.0,0.00029269,7]
[328207450,1717059052795,-500.0,0.00029269,7]
[328207451,1717059052804,-500.0,0.00029269,7]
[328207452,1717059052813,-567.9134278,0.00029269,7]
[328207453,1717059052822,-500.0,0.00029269,7]
[328207454,1717059052831,-500.0,0.00029269,7]
[328207455,1717059052841,-500.0,0.00029269,7]
[328207456,1717059052850,-500.0,0.00029269,7]
[328207457,1717059052859,-500.0,0.00029269,7]
[328207458,1717059052868,-1356.79,0.00029269,7]
[328207459,1717059052877,-500.0,0.00029269,7]
[328207460,1717059052886,-500.0,0.00029269,7]
[328207461,1717059052896,-500.0,0.00029269,7]
[328207462,1717059052906,-549.54,0.00029269,7]
[328207463,1717059052915,-565.66,0.00029269,7]
[328207464,1717059052925,-500.0,0.00029269,7]
[328207465,1717059052934,-697.62,0.00029269,7]
[328207466,1717059052943,-691.93,0.00029269,7]
[328207467,1717059052953,-500.0,0.00029269,7]
[328207468,1717059052963,-500.0,0.00029269,7]
[328207469,1717059052972,-500.0,0.00029269,7]
[328207470,1717059052982,-500.0,0.00029269,7]
[328207471,1717059052991,-500.0,0.00029269,7]
[328207472,1717059053000,-523.04251635,0.00029269,7]
[328207473,1717059053008,-500.0,0.00029269,7]
[328207474,1717059053018,-538.38321089,0.00029269,7]
[328207475,1717059053027,-629.92,0.00029269,7]
[328207476,1717059053037,-500.0,0.00029269,7]
[328207477,1717059053047,-500.0,0.00029269,7]
[328207478,1717059053056,-500.0,0.00029269,7]
[328207479,1717059053066,-500.0,0.00029269,7]
[328207480,1717059053075,-500.0,0.00029269,2]
[328207481,1717059053084,-500.0,0.00029269,7]
[328207482,1717059053093,-487.94241778,0.00029269,7]
[328207483,1717059053103,-500.0,0.00029269,7]
[328207484,1717059053112,-552.24825519,0.00029269,7]
[328207485,1717059053122,-349.96892909,0.00029269,7]
[328207486,1717059053138,-529.0449363,0.00029269,7]
[328207487,1717059053149,-500.0,0.00029269,7]
[328207488,1717059053160,-500.0,0.00029269,7]
[328207489,1717059053169,-500.0,0.00029269,7]
[328207490,1717059053178,-500.0,0.00029269,7]
[328207491,1717059053188,-506.4,0.00029269,7]
[328207492,1717059053197,-500.0,0.00029269,7]
[328207493,1717059053206,-500.0,0.00029269,7]
[328207494,1717059053217,-320.54065662,0.00029269,7]
[328207495,1717059053227,-251.44916045,0.00029269,7]
[328207496,1717059053236,-500.0,0.00029269,7]
[328207497,1717059053245,-500.0,0.00029269,7]
[328207498,1717059053254,-550.23,0.00029269,7]
[328207499,1717059053264,-539.43716293,0.00029269,7]
[328207500,1717059053273,-500.0,0.00029269,7]
[328207501,1717059053282,-529.62684504,0.00029269,7]
[328207502,1717059053291,-500.0,0.00029269,7]
[328207503,1717059053300,-500.0,0.00029269,7]
[328207504,1717059053310,-500.0,0.00029269,7]
[328207505,1717059053319,-500.0,0.00029269,7]
[328207506,1717059053328,-500.0,0.00029269,7]
[328207507,1717059053337,-500.0,0.00029269,7]
[328207508,1717059053346,-500.0,0.00029269,7]
[328207509,1717059053356,-500.0,0.00029269,7]
[328207510,1717059053365,-500.0,0.00029269,7]
[328207511,1717059053374,-500.0,0.00029269,7]
[328207512,1717059053383,-500.0,0.00029269,7]
[328207513,1717059053392,-541.88499979,0.00029269,7]
[328207514,1717059053402,-500.0,0.00029269,7]
[328207515,1717059053412,-500.0,0.00029269,7]
[328207516,1717059053421,-591.35729766,0.00029269,7]
[328207517,1717059053431,-556.69502836,0.00029269,7]
[328207518,1717059053440,-500.0,0.00029269,7]
[328207519,1717059053450,-500.0,0.00029269,7]
[328207520,1717059053460,-500.0,0.00029269,7]
[328207521,1717059053469,-500.0,0.00029269,7]
[328207522,1717059053479,-500.0,0.00029269,7]
[328207523,1717059053488,-500.0,0.00029269,7]
[328207524,1717059053497,-500.0,0.00029269,7]
[328207525,1717059053506,-500.0,0.00029269,7]
[328207526,1717059053515,-500.0,0.00029269,7]
[328207527,1717059053524,-500.0,0.00029269,7]
[328207528,1717059053534,-500.0,0.00029269,7]
[328207529,1717059053543,-500.0,0.00029269,7]
[328207530,1717059053552,-500.0,0.00029269,7]
[328207531,1717059053562,-373.65147722,0.00029269,7]
[328207532,1717059053571,-500.0,0.00029269,7]
[328207533,1717059053580,-500.0,0.00029269,7]
[328207534,1717059053590,-515.18613285,0.00029269,7]
[328207535,1717059053599,-516.1715158,0.00029269,7]
[328207536,1717059053608,-206.24,0.00029269,7]
[328207537,1717059053618,-500.0,0.00029269,7]
[328207538,1717059053628,-500.0,0.00029269,2]
[328207539,1717059053637,-500.0,0.00029269,7]
[328207540,1717059053646,-500.0,0.00029269,7]
[328207541,1717059053656,-500.0,0.00029269,7]
[328207542,1717059053666,-500.0,0.00029269,7]
[328207543,1717059053675,-500.0,0.00029269,7]
[328207544,1717059053684,-500.0,0.00029269,7]
[328207545,1717059053693,-500.0,0.00029269,7]
[328207546,1717059053702,-500.0,0.00029269,7]
[328207547,1717059053711,-500.0,0.00029269,7]
[328207548,1717059053721,-500.0,0.00029269,7]
[328207549,1717059053730,-500.0,0.00029269,7]
[328207550,1717059053739,-500.0,0.00029269,7]
[328207551,1717059053749,-500.0,0.00029269,7]
[328207552,1717059053758,-500.0,0.00029269,7]
[328207553,1717059053767,-500.0,0.00029269,7]
[328207554,1717059053776,-573.94,0.00029269,7]
[328207555,1717059053785,-500.0,0.00029269,7]
[328207556,1717059053794,-500.0,0.00029269,7]
[328207557,1717059053804,-500.0,0.00029269,7]
[328207558,1717059053813,-500.0,0.00029269,7]
[328207559,1717059053823,-500.0,0.00029269,7]
[328207560,1717059053832,-500.0,0.00029269,7]
[328207561,1717059053842,-500.0,0.00029269,7]
[328207562,1717059053851,-514.21,0.00029269,2]
[328207563,1717059053860,-500.0,0.00029269,7]
[328207564,1717059053869,-500.0,0.00029269,7]
[328207565,1717059053879,-500.0,0.00029269,7]
[328207566,1717059053887,-500.0,0.00029269,7]
[328207567,1717059053897,-500.0,0.00029269,7]
[328207568,1717059053906,-500.0,0.00029269,7]
[328207569,1717059053915,-500.0,0.00029269,7]
[328207570,1717059053924,-500.0,0.00029269,7]
[328207571,1717059053933,-500.0,0.00029269,7]
[328207572,1717059053943,-862.11,0.00029269,7]
[328207573,1717059053951,-544.29385063,0.00029269,7]
[328207574,1717059053961,-500.0,0.00029269,7]
[328207575,1717059053970,-500.0,0.00029269,7]
[328207576,1717059053980,-500.0,0.00029269,7]
[328207577,1717059053989,-375.28337548,0.00029269,7]
[328207578,1717059053998,-525.38799989,0.00029269,7]
[328207579,1717059054007,-500.0,0.00029269,7]
[328207580,1717059054017,-500.0,0.00029269,7]
[328207581,1717059054027,-500.0,0.00029269,7]
[328207582,1717059054037,-500.0,0.00029269,7]
[328207583,1717059054046,-500.0,0.00029269,7]
[328207584,1717059054056,-500.0,0.00029269,7]
[328207585,1717059054065,-500.0,0.00029269,7]
[328207586,1717059054074,-500.0,0.00029269,7]
[328207587,1717059054084,-500.0,0.00029269,7]
[328207588,1717059054093,-500.0,0.00029269,7]
[328207589,1717059054102,-582.79181064,0.00029269,7]
[328207590,1717059054111,-500.0,0.00029269,7]
[328207591,1717059054121,-500.0,0.00029269,7]
[328207592,1717059054133,-500.0,0.00029269,7]
[328207593,1717059054142,-500.0,0.00029269,7]
[328207594,1717059054151,-500.0,0.00029269,7]
[328207595,1717059054160,-500.0,0.00029269,7]
[328207596,1717059054171,-500.0,0.00029269,7]
[328207597,1717059054180,-500.0,0.00029269,7]
[328207598,1717059054189,-500.0,0.00029269,7]
[328207599,1717059054198,-500.0,0.00029269,7]
[328207600,1717059054209,-546.240793,0.00029269,7]
[328207601,1717059054219,-500.0,0.00029269,7]
[328207602,1717059054228,-500.0,0.00029269,7]
[328207603,1717059054237,-500.0,0.00029269,7]
[328207604,1717059054246,-500.0,0.00029269,7]
[328207605,1717059054256,-500.0,0.00029269,7]
[328207606,1717059054265,-500.0,0.00029269,7]
[328207607,1717059054274,-500.0,0.00029269,7]
[328207608,1717059054283,-500.0,0.00029269,7]
[328207609,1717059054293,-500.0,0.0002927,2]
[328207610,1717059054302,-503.47231554,0.0002927,7]
[328207611,1717059054312,-500.0,0.0002927,2]
[328207612,1717059054321,-1500.0,0.00029278,2]
[328207613,1717059054330,-362.09,0.00029281,2]
[328207614,1717059054339,-2623.59323105,0.00029284,2]
[328207615,1717059054348,-11899.6556611,0.00029284,2]
[328207616,1717059054358,-5548.50413638,0.00029286,2]
[328207617,1717059054367,-325.77391289,0.00029302,2]
[328207618,1717059054376,-300.0,0.00029313,2]
[328207619,1717059054385,-1500.0,0.00029323,2]
[328207620,1717059054394,-150.0,0.00029344,2]
[328207621,1717059054404,-150.0,0.00029358,2]
[328207622,1717059054412,-150.0,0.00029396,2]
[328207623,1717059054421,-150.0,0.00029452,2]
[328207624,1717059054430,-150.0,0.00029459,2]
[328207625,1717059054439,-150.0,0.0002948,2]
[328207626,1717059054449,-1500.0,0.00029517,2]
[328207627,1717059054458,-1500.0,0.0002952,2]
[328207628,1717059054467,-3160.0,0.00029534,4]
[328207629,1717059054477,-500.0,0.00029539,7]
[328207630,1717059054486,-500.0,0.00029539,7]
[328207631,1717059054495,-1452.87,0.00029539,7]
[328207632,1717059054504,-500.0,0.00029539,7]
[328207633,1717059054513,-500.0,0.00029539,7]
[328207634,1717059054523,-500.0,0.00029539,7]
[328207635,1717059054532,-500.0,0.00029539,7]
[328207636,1717059054541,-500.0,0.00029539,7]
[328207637,1717059054550,-979.98,0.00029539,7]
[328207638,1717059054560,-425.14224193,0.00029539,7]
[328207639,1717059054569,-530.91559692,0.00029539,7]
[328207640,1717059054577,-500.0,0.00029539,7]
[328207641,1717059054586,-500.0,0.00029539,7]
[328207642,1717059054596,-708.28,0.00029539,7]
[328207643,1717059054605,-512.86,0.00029539,7]
[328207644,1717059054615,-500.0,0.0002954,7]
[328207645,1717059054624,-500.0,0.0002954,7]
[328207646,1717059054633,-500.0,0.0002954,7]
[328207647,1717059054642,-559.26447696,0.0002954,7]
[328207648,1717059054653,-500.0,0.0002954,7]
[328207649,1717059054662,-500.0,0.0002954,7]
[328207650,1717059054671,-500.0,0.0002954,7]
[328207651,1717059054681,-500.0,0.0002954,7]
[328207652,1717059054691,-500.0,0.0002954,7]
[328207653,1717059054700,-500.0,0.0002954,2]
[328207654,1717059054710,-500.0,0.0002954,7]
[328207655,1717059054719,-500.0,0.0002954,7]
[328207656,1717059054729,-500.0,0.0002954,7]
[328207657,1717059054738,-500.0,0.0002954,7]
[328207658,1717059054748,-513.81024872,0.0002954,7]
[328207659,1717059054757,-500.0,0.0002954,7]
[328207660,1717059054766,-500.0,0.0002954,7]
[328207661,1717059054776,-500.0,0.0002954,7]
[328207662,1717059054785,-500.0,0.0002954,7]
[328207663,1717059054794,-500.0,0.0002954,7]
[328207664,1717059054802,-500.0,0.0002954,7]
[328207665,1717059054812,-816.72,0.0002954,7]
[328207666,1717059054821,-565.67870604,0.0002954,7]
[328207667,1717059054830,-500.0,0.0002954,7]
[328207668,1717059054839,-500.0,0.0002954,7]
[328207669,1717059054848,-500.0,0.0002954,7]
[328207670,1717059054857,-500.0,0.0002954,7]
[328207671,1717059054867,-500.0,0.0002954,7]
[328207672,1717059054877,-500.0,0.0002954,7]
[328207673,1717059054887,-500.0,0.0002954,7]
[328207674,1717059054896,-500.0,0.0002954,7]
[328207675,1717059054907,-500.0,0.0002954,7]
[328207676,1717059054916,-221.16023051,0.0002954,7]
[328207677,1717059054925,-500.0,0.0002954,7]
[328207678,1717059054934,-500.0,0.0002954,7]
[328207679,1717059054943,-452.98182894,0.0002954,7]
[328207680,1717059054952,-500.0,0.0002954,7]
[328207681,1717059054962,-500.0,0.0002954,7]
[328207682,1717059054971,-569.03008014,0.0002954,7]
[328207683,1717059054980,-561.78009896,0.0002954,7]
[328207684,1717059054989,-500.0,0.0002954,7]
[328207685,1717059054998,-649.77803346,0.0002954,7]
[328207686,1717059055008,-525.68122545,0.0002954,7]
[328207687,1717059055017,-500.0,0.0002954,7]
[328207688,1717059055026,-500.0,0.0002954,7]
[328207689,1717059055036,-500.0,0.0002954,7]
[328207690,1717059055046,-500.0,0.0002954,7]
[328207691,1717059055056,-500.0,0.0002954,7]
[328207692,1717059055066,-500.0,0.0002954,7]
[328207693,1717059055075,-500.0,0.0002954,7]
[328207694,1717059055084,-500.0,0.0002954,7]
[328207695,1717059055094,-525.67,0.0002954,7]
[328207696,1717059055103,-500.0,0.0002954,7]